fUST/lending_fUST_20250329
["ID","MTS","AMOUNT","RATE_DAILY","PERIOD"]
[356799462,1743220234463,-500.0,0.00024657,2]
[356799463,1743220234473,-500.0,0.00024657,2]
[356799464,1743220234483,-503.80678308,0.00024657,2]
[356799465,1743220234493,-523.84,0.00024657,2]
[356799466,1743220234503,-500.93255646,0.00024657,2]
[356799467,1743220234513,-500.0,0.00024657,2]
[356799468,1743220234523,-500.0,0.00024657,2]
[356799469,1743220234532,-500.67917022,0.00024657,2]
[356799470,1743220234541,-500.0,0.00024657,2]
[356799471,1743220234551,-500.0,0.00024657,2]
[356799472,1743220234561,-500.0,0.00024657,2]
[356799473,1743220234902,-1202.72,0.00024657,2]
[356799474,1743220234936,-505.07490147,0.00024657,2]
[356799475,1743220234946,-500.0,0.00024657,2]
[356799476,1743220234955,-621.74,0.00024657,2]
[356799477,1743220234964,-500.0,0.00024657,2]
[356799478,1743220234975,-500.0,0.00024657,2]
[356799479,1743220234985,-500.0,0.00024657,2]
[356799480,1743220234995,-632.78137789,0.00024657,2]
[356799481,1743220235005,-500.0,0.00024657,2]
[356799482,1743220235015,-500.0,0.00024657,2]
[356799483,1743220235025,-500.0,0.00024657,2]
[356799484,1743220235035,-500.0,0.00024657,2]
[356799485,1743220235044,-1214.37,0.00024657,2]
[356799486,1743220235053,-615.3,0.00024657,2]
[356799487,1743220235063,-500.0,0.00024657,2]
[356799488,1743220235072,-1167.03,0.00024657,2]
[356799489,1743220235083,-1057.08,0.00024657,2]
[356799490,1743220235093,-500.0,0.00024657,2]
[356799491,1743220235104,-500.0,0.00024657,2]
[356799492,1743220235114,-500.0,0.00024657,2]
[356799493,1743220235123,-500.0,0.00024657,2]
[356799494,1743220235132,-500.0,0.00024657,2]
[356799495,1743220235141,-500.0,0.00024657,2]
[356799496,1743220235150,-500.0,0.00024657,2]
[356799497,1743220235159,-500.0,0.00024657,2]
[356799498,1743220235168,-500.0,0.00024657,2]
[356799499,1743220235177,-500.0,0.00024657,2]
[356799500,1743220235187,-500.0,0.00024657,2]
[356799501,1743220235196,-500.0,0.00024657,2]
[356799502,1743220235205,-500.0,0.00024657,2]
[356799503,1743220235214,-500.0,0.00024657,2]
[356799504,1743220235223,-500.0,0.00024657,2]
[356799505,1743220235233,-500.0,0.00024657,2]
[356799506,1743220235242,-500.0,0.00024657,2]
[356799507,1743220235252,-500.0,0.00024657,2]
[356799508,1743220235261,-500.0,0.00024657,2]
[356799509,1743220235273,-501.60343452,0.00024657,2]
[356799510,1743220235282,-500.0,0.00024657,2]
[356799511,1743220235292,-500.0,0.00024657,2]
[356799512,1743220235301,-625.36,0.00024657,2]
[356799513,1743220235310,-514.68,0.00024657,2]
[356799514,1743220235321,-500.0,0.00024657,2]
[356799515,1743220235330,-196.9817335,0.00024657,2]
[356799516,1743220235339,-500.0,0.00024657,2]
[356799517,1743220235349,-500.0,0.00024657,2]
[356799518,1743220235358,-501.08313743,0.00024657,2]
[356799519,1743220235368,-563.45,0.00024657,2]
[356799520,1743220235377,-1136.22,0.00024657,2]
[356799521,1743220235386,-1150.15,0.00024657,2]
[356799522,1743220235395,-500.0,0.00024657,2]
[356799523,1743220235405,-504.15,0.00024657,2]
[356799524,1743220235414,-806.06,0.00024657,2]
[356799525,1743220235423,-500.0,0.00024657,2]
[356799526,1743220235433,-500.0,0.00024657,2]
[356799527,1743220235442,-715.69,0.00024657,2]
[356799528,1743220235451,-1537.35,0.00024657,2]
[356799529,1743220235460,-500.0,0.00024657,2]
[356799530,1743220235468,-500.0,0.00024657,2]
[356799531,1743220235478,-503.16409064,0.00024657,2]
[356799532,1743220235487,-500.0,0.00024657,2]
[356799533,1743220235497,-500.0,0.00024657,2]
[356799534,1743220235506,-500.0,0.00024657,2]
[356799535,1743220235516,-729.92,0.00024657,2]
[356799536,1743220235525,-500.97883363,0.00024657,2]
[356799537,1743220235534,-500.0,0.00024657,2]
[356799538,1743220235544,-500.0,0.00024657,2]
[356799539,1743220235553,-500.0,0.00024657,2]
[356799540,1743220235562,-500.0,0.00024657,2]
[356799541,1743220235572,-500.0,0.00024657,2]
[356799542,1743220235581,-500.0,0.00024657,2]
[356799543,1743220235590,-151.0,0.00024657,7]
[356799544,1743220235601,-500.0,0.00024657,2]
[356799545,1743220235610,-500.0,0.00024657,2]
[356799546,1743220235620,-552.1,0.00024657,2]
[356799547,1743220235629,-1376.35,0.00024657,2]
[356799548,1743220235639,-500.0,0.00024657,2]
[356799549,1743220235648,-999.83,0.00024657,2]
[356799550,1743220235657,-500.0,0.00024657,2]
[356799551,1743220235667,-500.0,0.00024657,2]
[356799552,1743220235677,-151.0,0.00024657,7]
[356799553,1743220235686,-500.0,0.00024657,2]
[356799554,1743220235696,-500.0,0.00024657,2]
[356799555,1743220235706,-214.089563,0.00024657,7]
[356799556,1743220235715,-500.0,0.00024657,2]
[356799557,1743220235725,-2260.97,0.00024657,2]
[356799558,1743220235734,-2177.07,0.00024657,2]
[356799559,1743220235744,-500.0,0.00024657,2]
[356799560,1743220235753,-500.0,0.00024657,2]
[356799561,1743220235763,-500.0,0.00024657,2]
[356799562,1743220235772,-500.0,0.00024657,2]
[356799563,1743220235782,-500.0,0.00024657,2]
[356799564,1743220235791,-1676.88,0.00024657,2]
[356799565,1743220235801,-1325.13,0.00024657,2]
[356799566,1743220235811,-1339.79,0.00024657,2]
[356799567,1743220235821,-500.0,0.00024657,2]
[356799568,1743220235831,-500.0,0.00024657,2]
[356799569,1743220235840,-500.0,0.00024657,2]
[356799570,1743220235850,-500.0,0.00024657,2]
[356799571,1743220235859,-500.0,0.00024657,2]
[356799572,1743220235869,-385.34322463,0.00024657,2]
[356799573,1743220235878,-500.0,0.00024657,2]
[356799574,1743220235888,-500.0,0.00024657,2]
[356799575,1743220235898,-500.0,0.00024657,2]
[356799576,1743220235908,-500.0,0.00024657,2]
[356799577,1743220235918,-619.08,0.00024657,2]
[356799578,1743220235928,-813.59,0.00024657,2]
[356799579,1743220235937,-553.26,0.00024657,2]
[356799580,1743220235947,-500.0,0.00024657,2]
[356799581,1743220235957,-500.0,0.00024657,2]
[356799582,1743220235966,-500.0,0.00024657,2]
[356799583,1743220235975,-1327.66,0.00024657,2]
[356799584,1743220235985,-606.67,0.00024657,2]
[356799585,1743220235995,-905.53,0.00024657,2]
[356799586,1743220236004,-935.96,0.00024657,2]
[356799587,1743220236014,-500.0,0.00024657,2]
[356799588,1743220236024,-500.0,0.00024657,2]
[356799589,1743220236033,-2874.86,0.00024657,2]
[356799590,1743220236042,-290.120456,0.00024657,7]
[356799591,1743220236052,-500.0,0.00024657,2]
[356799592,1743220236062,-500.0,0.00024657,2]
[356799593,1743220236071,-955.94,0.00024657,2]
[356799594,1743220236081,-500.0,0.00024657,2]
[356799595,1743220236091,-151.0,0.00024657,7]
[356799596,1743220236101,-500.0,0.00024657,2]
[356799597,1743220236110,-511.46,0.00024657,2]
[356799598,1743220236120,-500.0,0.00024657,2]
[356799599,1743220236129,-500.0,0.00024657,2]
[356799600,1743220236139,-500.0,0.00024657,2]
[356799601,1743220236148,-891.14,0.00024657,2]
[356799602,1743220236157,-1577.32,0.00024657,2]
[356799603,1743220236167,-500.0,0.00024657,2]
[356799604,1743220236177,-1473.06,0.00024657,2]
[356799605,1743220236186,-500.0,0.00024657,2]
[356799606,1743220236196,-500.0,0.00024657,2]
[356799607,1743220236206,-669.27,0.00024657,2]
[356799608,1743220236216,-500.0,0.00024657,2]
[356799609,1743220236225,-500.0,0.00024657,2]
[356799610,1743220236235,-500.0,0.00024657,2]
[356799611,1743220236244,-500.0,0.00024657,2]
[356799612,1743220236254,-1109.88,0.00024657,2]
[356799613,1743220236263,-500.0,0.00024657,2]
[356799614,1743220236275,-817.16,0.00024657,2]
[356799615,1743220236284,-500.0,0.00024657,2]
[356799616,1743220236294,-500.0,0.00024657,2]
[356799617,1743220236303,-500.0,0.00024657,2]
[356799618,1743220236314,-500.0,0.00024657,2]
[356799619,1743220236323,-779.21,0.00024657,2]
[356799620,1743220236335,-500.0,0.00024657,2]
[356799621,1743220236345,-504.28320722,0.00024657,2]
[356799622,1743220236357,-500.0,0.00024657,2]
[356799623,1743220236367,-500.0,0.00024657,2]
[356799624,1743220236377,-500.0,0.00024657,2]
[356799625,1743220236386,-500.0,0.00024657,2]
[356799626,1743220236396,-844.62,0.00024657,2]
[356799627,1743220236406,-500.0,0.00024657,2]
[356799628,1743220236416,-500.0,0.00024657,2]
[356799629,1743220236426,-500.0,0.00024657,2]
[356799630,1743220236436,-516.45,0.00024657,2]
[356799631,1743220236445,-796.25,0.00024657,2]
[356799632,1743220236455,-500.0,0.00024657,2]
[356799633,1743220236464,-500.0,0.00024657,2]
[356799634,1743220236474,-3696.68,0.00024657,2]
[356799635,1743220236483,-500.0,0.00024657,2]
[356799636,1743220236493,-504.77618368,0.00024657,2]
[356799637,1743220236503,-500.0,0.00024657,2]
[356799638,1743220236512,-1403.17,0.00024657,2]
[356799639,1743220236522,-500.0,0.00024657,2]
[356799640,1743220236531,-1665.04,0.00024657,2]
[356799641,1743220236540,-500.0,0.00024657,2]
[356799642,1743220236550,-500.0,0.00024657,2]
[356799643,1743220236559,-1591.07,0.00024657,2]
[356799644,1743220236569,-500.0,0.00024657,2]
[356799645,1743220236579,-500.0,0.00024657,2]
[356799646,1743220236589,-886.0,0.00024657,2]
[356799647,1743220236598,-1532.39,0.00024657,2]
[356799648,1743220236607,-713.55,0.00024657,2]
[356799649,1743220236617,-500.0,0.00024657,2]
[356799650,1743220236626,-500.0,0.00024657,2]
[356799651,1743220236636,-528.95521943,0.00024657,2]
[356799652,1743220236646,-3455.85,0.00024657,2]
[356799653,1743220236656,-1610.68,0.00024657,2]
[356799654,1743220236666,-500.0,0.00024657,2]
[356799655,1743220236675,-500.0,0.00024657,2]
[356799656,1743220236685,-818.24,0.00024657,2]
[356799657,1743220236695,-500.0,0.00024657,2]
[356799658,1743220236704,-500.0,0.00024657,2]
[356799659,1743220236714,-500.0,0.00024657,2]
[356799660,1743220236723,-3635.55,0.00024657,2]
[356799661,1743220236733,-500.0,0.00024657,2]
[356799662,1743220236743,-500.0,0.00024657,2]
[356799663,1743220236752,-500.0,0.00024657,2]
[356799664,1743220236763,-758.16,0.00024657,2]
[356799665,1743220236773,-828.22,0.00024657,2]
[356799666,1743220236782,-708.53,0.00024657,2]
[356799667,1743220236792,-500.0,0.00024657,2]
[356799668,1743220236802,-500.0,0.00024657,2]
[356799669,1743220236812,-500.0,0.00024657,2]
[356799670,1743220236821,-1471.64,0.00024657,2]
[356799671,1743220236831,-3988.16,0.00024657,2]
[356799672,1743220236841,-500.0,0.00024657,2]
[356799673,1743220236850,-500.0,0.00024657,2]
[356799674,1743220236860,-643.74442224,0.00024657,2]
[356799675,1743220236870,-1785.35,0.00024657,2]
[356799676,1743220236879,-381.43221195,0.00024657,2]
[356799696,1743220238608,-474.33080632,0.00024656,2]
[356799697,1743220238618,-118.56778805,0.00024657,2]
[356799698,1743220238627,-500.0,0.00024657,2]
[356799699,1743220238637,-500.0,0.00024657,2]
[356799700,1743220238647,-500.0,0.00024657,2]
[356799701,1743220238656,-500.0,0.00024657,2]
[356799702,1743220238666,-636.79,0.00024657,2]
[356799703,1743220238676,-1545.81,0.00024657,2]
[356799704,1743220238685,-1155.63,0.00024657,2]
[356799705,1743220238695,-500.0,0.00024657,2]
[356799706,1743220238704,-500.0,0.00024657,2]
[356799707,1743220238714,-934.92,0.00024657,2]
[356799708,1743220238723,-712.06,0.00024657,2]
[356799709,1743220238733,-500.0,0.00024657,2]
[356799710,1743220238742,-2016.38,0.00024657,2]
[356799711,1743220238752,-500.0,0.00024657,2]
[356799712,1743220238761,-1727.48,0.00024657,2]
[356799713,1743220238771,-500.0,0.00024657,2]
[356799714,1743220238781,-500.0,0.00024657,2]
[356799715,1743220238791,-948.98,0.00024657,2]
[356799716,1743220238801,-1000.0,0.00024657,2]
[356799717,1743220238810,-500.0,0.00024657,2]
[356799718,1743220238820,-1585.64,0.00024657,2]
[356799719,1743220238830,-507.92609238,0.00024657,2]
[356799720,1743220238840,-611.18302957,0.00024657,2]
[356799721,1743220238850,-1950.51,0.00024657,2]
[356799722,1743220238859,-500.0,0.00024657,2]
[356799723,1743220238869,-500.0,0.00024657,2]
[356799724,1743220238879,-500.0,0.00024657,2]
[356799725,1743220238888,-500.0,0.00024657,2]
[356799726,1743220238898,-646.74,0.00024657,2]
[356799727,1743220238908,-500.0,0.00024657,2]
[356799728,1743220238917,-511.63067465,0.00024657,2]
[356799739,1743220240325,-210.20128967,0.00024657,2]
[356799740,1743220240338,-693.97803568,0.00024657,2]
[356799741,1743220240347,-500.0,0.00024657,2]
[356799742,1743220240358,-585.19,0.00024657,2]
[356799743,1743220240369,-500.0,0.00024657,2]
[356799744,1743220240379,-1686.33148887,0.00024657,2]
[356799745,1743220240392,-2100.15851113,0.00024657,2]
[356799746,1743220240402,-744.39,0.00024657,2]
[356799747,1743220240411,-500.0,0.00024657,2]
[356799748,1743220240421,-500.0,0.00024657,2]
[356799749,1743220240431,-520.05,0.00024657,2]
[356799750,1743220240441,-1403.18,0.00024657,2]
[356799751,1743220240451,-582.984004,0.00024657,2]
[356799752,1743220240461,-500.0,0.00024657,2]
[356799753,1743220240470,-120.11708578,0.00024657,2]
[356799754,1743220240482,-379.88291422,0.00024657,2]
[356799755,1743220240492,-500.0,0.00024657,2]
[356799756,1743220240502,-2051.07,0.00024657,2]
[356799757,1743220240512,-500.0,0.00024657,2]
[356799758,1743220240523,-500.0,0.00024657,2]
[356799759,1743220240532,-500.0,0.00024657,2]
[356799760,1743220240542,-500.0,0.00024657,2]
[356799761,1743220240551,-31.71010601,0.00024657,2]
[356799762,1743220240790,-1618.06989399,0.00024657,2]
[356799763,1743220240800,-500.0,0.00024657,2]
[356799764,1743220240810,-736.37,0.00024657,2]
[356799765,1743220240819,-500.0,0.00024657,2]
[356799766,1743220240829,-465.1826732,0.00024657,2]
[356799767,1743220240843,-500.0,0.00024657,2]
[356799768,1743220240852,-500.0,0.00024657,2]
[356799769,1743220240861,-500.0,0.00024657,2]
[356799770,1743220240870,-500.0,0.00024657,2]
[356799771,1743220240879,-934.96,0.00024657,2]
[356799772,1743220240889,-755.84,0.00024657,2]
[356799773,1743220240898,-454.64714627,0.00024657,2]
[356799774,1743220241491,-45.35285373,0.00024657,2]
[356799775,1743220241501,-367.17765955,0.00024657,2]
[356799776,1743220241514,-190.02234045,0.00024657,2]
[356799777,1743220241523,-599.43,0.00024657,2]
[356799778,1743220241533,-204.07602937,0.00024657,2]
[356799779,1743220241543,-500.0,0.00024657,2]
[356799780,1743220241552,-512.27899934,0.00024657,2]
[356799781,1743220241562,-500.0,0.00024657,2]
[356799782,1743220241571,-500.0,0.00024657,2]
[356799783,1743220241586,-1279.72,0.00024657,2]
[356799784,1743220241598,-524.3,0.00024657,2]
[356799785,1743220241610,-500.0,0.00024657,2]
[356799786,1743220241620,-713.9,0.00024657,2]
[356799787,1743220241629,-507.53218851,0.00024657,2]
[356799788,1743220241638,-796.64,0.00024657,2]
[356799789,1743220241648,-500.0,0.00024657,2]
[356799790,1743220241657,-500.0,0.00024657,2]
[356799791,1743220241666,-500.0,0.00024657,2]
[356799792,1743220241675,-1503.35,0.00024657,2]
[356799793,1743220241685,-500.0,0.00024657,2]
[356799794,1743220241694,-500.0,0.00024657,2]
[356799795,1743220241704,-1758.44,0.00024657,2]
[356799796,1743220241713,-500.0,0.00024657,2]
[356799797,1743220241722,-151.0,0.00024657,7]
[356799798,1743220241731,-500.0,0.00024657,2]
[356799799,1743220241740,-243.64619099,0.00024657,2]
[356799800,1743220241752,-256.35380901,0.00024657,2]
[356799801,1743220241762,-273.04818288,0.00024657,2]
[356799802,1743220241771,-105.5011561,0.00024657,2]
[356799803,1743220241782,-394.4988439,0.00024657,2]
[356799804,1743220241791,-516.9939732,0.00024657,2]
[356799805,1743220241800,-803.02,0.00024657,2]
[356799806,1743220241809,-500.0,0.00024657,2]
[356799807,1743220241819,-561.24,0.00024657,2]
[356799808,1743220241828,-500.0,0.00024657,2]
[356799809,1743220241839,-500.0,0.00024657,2]
[356799810,1743220241849,-500.0,0.00024657,2]
[356799811,1743220241859,-500.0,0.00024657,2]
[356799812,1743220241869,-364.52547362,0.00024657,2]
[356799813,1743220241879,-605.69,0.00024657,2]
[356799814,1743220241888,-161.35691475,0.00024657,2]
[356799815,1743220241897,-818.9,0.00024657,2]
[356799816,1743220241907,-500.0,0.00024657,2]
[356799817,1743220241917,-178.6544615,0.00024657,2]
[356799818,1743220241927,-317.23975599,0.00024657,2]
[356799819,1743220241936,-875.14,0.00024657,2]
[356799820,1743220241946,-500.0,0.00024657,2]
[356799821,1743220241956,-500.0,0.00024657,2]
[356799822,1743220241965,-500.0,0.00024657,2]
[356799823,1743220241975,-694.52,0.00024657,2]
[356799824,1743220241985,-641.91,0.00024657,2]
[356799825,1743220241994,-500.0,0.00024657,2]
[356799826,1743220242003,-500.0,0.00024657,2]
[356799827,1743220242013,-503.79,0.00024657,2]
[356799828,1743220242022,-500.0,0.00024657,2]
[356799829,1743220242032,-1344.46,0.00024657,2]
[356799830,1743220242042,-500.0,0.00024657,2]
[356799831,1743220242051,-521.75063305,0.00024657,2]
[356799832,1743220242061,-371.61648959,0.00024657,2]
[356799833,1743220242070,-562.7,0.00024657,2]
[356799834,1743220242080,-1834.79004102,0.00024657,2]
[356799841,1743220243537,-3589.51995898,0.00024657,2]
[356799842,1743220243548,-795.28,0.00024657,2]
[356799843,1743220243558,-500.0,0.00024657,2]
[356799844,1743220243568,-570.9,0.00024657,2]
[356799845,1743220243578,-500.0,0.00024657,2]
[356799846,1743220243588,-635.94336311,0.00024657,2]
[356799847,1743220243598,-75.69200182,0.00024657,2]
[356799853,1743220245783,-477.54799818,0.00024657,2]
[356799854,1743220245793,-374.07767695,0.00024657,2]
[356799855,1743220246887,-160.82232305,0.00024657,2]
[356799856,1743220246897,-564.49,0.00024657,2]
[356799857,1743220246907,-491.71420442,0.00024657,2]
[356799886,1743221148088,-937.597732,0.00023142,2]
[356799887,1743221148107,-198.92664809,0.00023315,2]
[356799888,1743221148129,-1931.65773574,0.00023328,2]
[356799889,1743221148150,-1281.15012164,0.00023414,2]
[356799890,1743221156099,-313.57019358,0.00023414,2]
[356799892,1743221244109,-237.37277978,0.00022418,2]
[356799893,1743221253103,-12.62722022,0.00022418,2]
[356799894,1743221253125,-282.4194895,0.00023314,2]
[356799895,1743221253148,-300.0,0.00023412,2]
[356799896,1743221253170,-500.0,0.00023413,2]
[356799897,1743221253192,-279.46687677,0.00023413,2]
[356799898,1743221253219,-500.0,0.00023413,2]
[356799899,1743221253241,-399.77978143,0.00023413,2]
[356799900,1743221253265,-54.2285866,0.00023413,2]
[356799901,1743221349124,-1690.20051872,0.00023313,2]
[356799902,1743221349161,-188.27965966,0.00023314,2]
[356799903,1743221349193,-300.0,0.00023411,2]
[356799904,1743221349221,-500.0,0.00023412,2]
[356799905,1743221349251,-490.56989619,0.00023412,2]
[356799906,1743221349282,-500.0,0.00023412,2]
[356799907,1743221349313,-500.0,0.00023412,2]
[356799908,1743221349346,-500.0,0.00023412,2]
[356799909,1743221349373,-500.0,0.00023412,2]
[356799910,1743221349401,-500.0,0.00023412,2]
[356799911,1743221349432,-500.0,0.00023412,2]
[356799912,1743221349457,-500.0,0.00023412,2]
[356799913,1743221349481,-500.0,0.00023412,2]
[356799914,1743221349504,-386.40562896,0.00023412,2]
[356799915,1743221349528,-500.0,0.00023412,2]
[356799916,1743221349554,-500.0,0.00023412,2]
[356799917,1743221349581,-500.0,0.00023412,2]
[356799918,1743221349605,-500.0,0.00023412,2]
[356799919,1743221349632,-500.0,0.00023412,2]
[356799920,1743221349658,-351.38429232,0.00023412,2]
[356799921,1743221349682,-500.0,0.00023412,2]
[356799922,1743221349703,-32385.2823763,0.00023413,2]
[356799923,1743221354193,-8062.2619233,0.00023413,2]
[356799924,1743221354238,-332.03156443,0.00023414,2]
[356799925,1743221354284,-4269.33718281,0.00023415,2]
[356799926,1743221357074,-2832.45597467,0.00023415,2]
[356799927,1743221360094,-17798.20684252,0.00023415,2]
[356799928,1743221360116,-294.0522862,0.00023429,2]
[356799929,1743221360137,-184.57018547,0.00023557,2]
[356799930,1743221360158,-10000.0,0.00023657,2]
[356799931,1743221360178,-500.0,0.00023657,2]
[356799932,1743221360199,-374.24317303,0.00023657,2]
[356799933,1743221360220,-184.57018547,0.00023807,2]
[356799934,1743221360240,-188.27965965,0.00023829,2]
[356799935,1743221360261,-184.57018547,0.00024057,2]
[356799936,1743221360283,-1021.48973143,0.00024156,2]
[356799937,1743221367110,-668.71078728,0.00024156,2]
[356799938,1743221367131,-184.57018547,0.00024307,2]
[356799939,1743221367152,-188.27965965,0.00024344,2]
[356799940,1743221367172,-189.98,0.00024434,3]
[356799941,1743221367194,-31172.0855816,0.00024444,3]
[356799942,1743221373112,-426.59523305,0.00024444,3]
[356799987,1743221438483,-232.4220951,0.00023999,2]
[356799988,1743221438493,-500.0,0.00023999,2]
[356799989,1743221438508,-261.26492137,0.00023999,2]
[356799990,1743221438518,-956.96303026,0.00024,2]
[356799991,1743221438530,-5783.17068176,0.00024,2]
[356799992,1743221438542,-12573.80655985,0.00024,2]
[356800012,1743221442972,-10582.92411666,0.00024,2]
[356800013,1743221443025,-28445.66887088,0.00024,2]
[356800014,1743221443131,-8694.78539339,0.00024,2]
[356800023,1743221447118,-258.72466161,0.00024,2]
[356800026,1743221583524,173.772182,0.00013699,2]
[356800038,1743222338168,-533.0047855,0.0002274,2]
[356800039,1743222338191,-475.62968981,0.00022775,2]
[356800040,1743222346082,-24.37031019,0.00022775,2]
[356800041,1743222346108,-462.58761513,0.00022775,2]
[356800043,1743222443565,-232.59729803,0.00022641,2]
[356800044,1743222453112,-67.40270197,0.00022641,2]
[356800045,1743222453139,-135.58452461,0.00022642,2]
[356800048,1743222500753,6117.27855393,0.000125,2]
[356800052,1743222529465,851.73025929,0.000247,120]
[356800053,1743222556143,-262.55988165,0.00017,2]
[356800054,1743222556165,-300.0,0.0002264,2]
[356800055,1743222556188,-500.0,0.00022641,2]
[356800056,1743222556209,-500.0,0.00022641,2]
[356800057,1743222556232,-500.0,0.00022641,2]
[356800058,1743222556253,-500.0,0.00022641,2]
[356800059,1743222556276,-500.0,0.00022641,2]
[356800060,1743222556297,-500.0,0.00022641,2]
[356800061,1743222556320,-500.0,0.00022641,2]
[356800062,1743222556340,-500.0,0.00022641,2]
[356800063,1743222556362,-500.0,0.00022641,2]
[356800064,1743222556383,-500.0,0.00022641,2]
[356800065,1743222556405,-500.0,0.00022641,2]
[356800066,1743222556426,-479.84031678,0.00022641,2]
[356800067,1743222556448,-500.0,0.00022641,2]
[356800068,1743222556470,-500.0,0.00022641,2]
[356800069,1743222556492,-500.0,0.00022641,2]
[356800070,1743222556513,-500.0,0.00022641,2]
[356800071,1743222556717,-500.0,0.00022641,2]
[356800072,1743222556753,-500.0,0.00022641,2]
[356800073,1743222556777,-500.0,0.00022641,2]
[356800074,1743222556798,-500.0,0.00022641,2]
[356800075,1743222556822,-602.91814763,0.00022641,2]
[356800076,1743222556843,-500.0,0.00022641,2]
[356800077,1743222556865,-500.0,0.00022641,2]
[356800078,1743222556887,-500.0,0.00022641,2]
[356800079,1743222556908,-500.0,0.00022641,2]
[356800080,1743222556931,-500.0,0.00022641,2]
[356800081,1743222556952,-500.0,0.00022641,2]
[356800082,1743222556974,-339.00558519,0.00022641,2]
[356800083,1743222564080,-160.99441481,0.00022641,2]
[356800084,1743222564107,-500.0,0.00022641,2]
[356800085,1743222564130,-500.0,0.00022641,2]
[356800086,1743222564152,-499.99999999,0.00022641,2]
[356800087,1743222564175,-478.1445016,0.00022642,2]
[356800088,1743222564196,-8141.92464148,0.00022642,2]
[356800089,1743222564216,-63980.88647442,0.00022643,2]
[356800090,1743222564253,-3985.89816198,0.00022643,2]
[356800091,1743222564274,-24900.0,0.00022777,2]
[356800092,1743222564294,-687.725716,0.00022919,2]
[356800093,1743222564313,-10000.0,0.00023013,2]
[356800094,1743222564333,-150.0,0.00023104,2]
[356800095,1743222564353,-6284.04,0.00023412,2]
[356800096,1743222564373,-6284.04,0.00023412,2]
[356800097,1743222564393,-6284.04,0.00023414,2]
[356800098,1743222564412,-152.0,0.00023479,2]
[356800099,1743222564432,-150.0,0.00023492,2]
[356800100,1743222564452,-177.85439763,0.00023623,2]
[356800101,1743222564472,-6284.04,0.00023656,2]
[356800102,1743222564492,-5730.0,0.00023666,2]
[356800103,1743222564512,-1069.0094226,0.00023909,2]
[356800104,1743222564532,-600.0,0.00023976,2]
[356800105,1743222564552,-300.0,0.00023976,2]
[356800106,1743222564574,-10900.29364589,0.0002399,3]
[356800107,1743222564594,-12595.62051457,0.0002399,3]
[356800108,1743222564614,-88323.38286098,0.0002399,2]
[356800109,1743222564633,-835.30152125,0.00024,3]
[356800110,1743222564653,-418.66406265,0.00024,3]
[356800111,1743222564673,-160.0,0.00024,3]
[356800112,1743222564693,-160.0,0.00024,3]
[356800113,1743222564713,-52047.54987923,0.00024,2]
[356800114,1743222564733,-465.19980285,0.00024009,2]
[356800115,1743222564752,-1222.2,0.00024031,2]
[356800116,1743222564772,-302.32053297,0.0002405,2]
[356800117,1743222564792,-302.32053297,0.000242,2]
[356800118,1743222564811,-488.39045353,0.00024344,2]
[356800119,1743222564833,-198.92664809,0.00024344,2]
[356800120,1743222564853,-302.32053297,0.0002435,2]